{"text_format":"3","workbook":"xlsx","n_sheets":1,"sheets":["3302"],"not_rendered":{"defined_names":2},"read":"whole","date_system":"1900"}

{"sheet":"3302","index":0,"n_rows":260,"n_cols":22,"rows_kept":260,"merged":[[0,0,0,15],[1,0,1,15],[3,4,3,15],[4,1,4,9],[4,11,4,15],[5,5,5,15],[7,0,9,0],[7,1,9,10],[7,11,9,11],[7,12,7,13],[7,14,9,14],[7,15,9,15],[250,7,250,13],[251,9,251,10],[252,9,252,10],[254,1,254,15],[255,1,255,15],[256,1,256,15],[258,8,258,12],[259,8,259,12],[260,0,260,15],[261,0,261,15],[262,0,262,15],[263,0,263,15],[264,0,264,15],[265,0,265,15],[266,0,266,15],[267,0,267,15],[268,0,268,15],[269,0,269,15],[270,0,270,15],[271,0,271,15],[272,0,272,15],[273,0,273,15],[274,0,274,15]]}
["แบบการประเมินความพร้อมของเรือ"]
["สาขา  การปฏิบัติงานฝ่ายเสนาธิการรบ (Combat Staff) (องค์ยุทธวิธี)"]
[]
["หน่วย/เรือที่รับการประเมิน"]
["ผู้ประเมิน",{"$nulls":9},"ตำแหน่ง"]
["วันที่และช่วงเวลาในการประเมิน"]
[]
["หัวข้อ","รายการ",{"$nulls":9},"น้ำหนัก\nคะแนน","คะแนนการประเมิน",null,"คะแนน\nที่ได้","หมายเหตุ"]
[{"$nulls":12},"ปฏิบัติ","ไม่ปฏิบัติ"]
[{"$nulls":12},1,0,{"$nulls":4},"sum","%","count"]
[1,"การจัดหน้าที่และผลผลิตฝ่ายต่างๆ ของเสนาธิการรบใน มวก."]
[null,1.1,"คณะเสนาธิการฯ (เสธ มวก./รอง เสธ.มวก.)",{"$nulls":8},{"v":5,"d":"5.0"},null,null,{"$f":"IF(S12=0,\"\",S12)","v":""},null,{"$f":"IF(M12=0,0,1*L12)","v":{"v":0,"d":"0.0"}},null,{"$f":"SUM(Q12:R12)","v":{"v":0,"d":"0.0"}},{"$f":"IF(P12=0,0,L12)","v":0}]
[null,"-","ควบคุมการปฏิบัติงานในส่วนของฝ่ายเสนาธิการ "]
[null,null,"ทั้งหมด เพื่อให้การปฏิบัติเป็นไปตามแผน"]
[null,"-","วางแผนต่างๆ เช่นแผนแก้สถานการณ์แผนล่วงหน้า"]
[null,null,"สำหรับ Phase ต่อไป แผนรอง ฯลฯ"]
[null,"-","เสนอข้อแนะนำในการตัดสินใจในเรื่องต่างๆ ให้กับผู้บังคับบัญชา"]
[null,null,"ควบคุม ผลผลิตต่างๆ และ การปฏิบัติตามตาราง "]
[null,null,"(Battle Rhythm) ในส่วนของฝ่ายเสนาธิการรบ"]
[null,1.2,"ฝ่ายกำลังพล (N1)",{"$nulls":8},{"v":5,"d":"5.0"},null,null,{"$f":"IF(S20=0,\"\",S20)","v":""},null,{"$f":"IF(M20=0,0,1*L20)","v":{"v":0,"d":"0.0"}},null,{"$f":"SUM(Q20:R20)","v":{"v":0,"d":"0.0"}},{"$f":"IF(P20=0,0,L20)","v":0}]
[null,"-","วางแผนเกี่ยวกับการกำลังพลโดยร่วมกับส่วนยุทธการ"]
[null,null,"(N3) และ ส่วนแผน (N5) ในการวางแผน"]
[null,null,"เพื่อจัดทำแผน/ คำสั่งยุทธการ"]
[null,"-","ติดตามสถานะกำลังพลตลอดเวลา"]
[null,"-","จัดทำสถานภาพกำลังพล รายงานจำนวนยอด"]
[null,null,"ผู้เสียชีวิต จำนวนผู้บาดเจ็บจากการสงคราม "]
[null,null,"ความต้องการกำลังพลเพิ่มเติมของหน่วยต่างๆ"]
[null,"-","ดำเนินการให้การปฏิบัติเกี่ยวกับการกำลังพลเป็นไป"]
[null,null,"ตามแผน/ระเบียบที่\nวางไว้"]
[null,"-","ให้คําแนะนํากับ ผบ.มวก. และฝ่ายเสนาธิการ"]
[null,null,"ฝ่ายต่างๆ เกี่ยวกับการกำลังพล"]
[null,1.3,"ฝ่ายข่าว (N2)",{"$nulls":8},{"v":5,"d":"5.0"},null,null,{"$f":"IF(S32=0,\"\",S32)","v":""},null,{"$f":"IF(M32=0,0,1*L32)","v":{"v":0,"d":"0.0"}},null,{"$f":"SUM(Q32:R32)","v":{"v":0,"d":"0.0"}},{"$f":"IF(P32=0,0,L32)","v":0}]
[null,"-","วางแผนเกี่ยวกับการข่าว โดยร่วมกับส่วนยุทธการ"]
[null,null,"(N3) และส่วนแผน (N5) ในการประมาณสถานการณ์"]
[null,null,"ต่อเนื่องเพื่อจัดทำแผน/คำสั่งยุทธการ"]
[null,"-","ติดตามความเคลื่อนไหวของข้าศึกตลอดเวลา"]
[null,"-","เสนอแนะบัญชีเป้าหมาย"]
[null,"-","จัดทำบอร์ดข้อมูลข่าวสารของฝ่ายข้าศึกประกอบด้วย"]
[null,null,"สถานะการวางกำลัง ขีดความสามารถ ข้าศึก"]
[null,null,"เป้าหมายและการประเมินค่าความเสียหาย ( BDA) ของเป้าหมาย"]
[null,"-","จัดให้มีการต่อต้านข่าวกรอง"]
[null,"-","แก้ไขปัญหาในด้านการข่าวทุกประเภทโดยจัดให้มี"]
[null,null,"การประชุมร่วมกันภายในฝ่าย"]
[null,1.4,"ฝ่ายยุทธการ (N3)",{"$nulls":8},{"v":5,"d":"5.0"},null,null,{"$f":"IF(S44=0,\"\",S44)","v":""},null,{"$f":"IF(M44=0,0,1*L44)","v":{"v":0,"d":"0.0"}},null,{"$f":"SUM(Q44:R44)","v":{"v":0,"d":"0.0"}},{"$f":"IF(P44=0,0,L44)","v":0}]
[null,"-","ควบคุมการปฏิบัติงานในส่วนของศูนย์ปฏิบัติการทางเรือ"]
[null,"-","ปรับการดำเนินการภายในส่วนยุทธการให้มี"]
[null,null,"ความเหมาะสมกับการปฏิบัติงาน"]
[null,"-","ติดตามสถานการณ์ในพื้นที่ปฏิบัติการอย่างต่อเนื่อง"]
[null,"-","เสนอแนะกฎการปะทะ (ROE)"]
[null,"-","ประเมินผลการปฏิบัติตามแผน"]
[null,"-","ประสานการปฏิบัติกับหน่วยต่างๆ เพื่อให้การปฏิบัติ "]
[null,null,"เป็นไปตามแผนที่วางไว้"]
[null,"-","แสดงภาพสถานการณ์ทั้งในอดีต (จากการพล๊อตติดตาม) "]
[null,null,"และปัจจุบัน\n (จากระบบC3I)"]
[null,"-","พัฒนาแผนที่จัดทำโดยฝ่ายแผน (N5) มาสู่การปฏิบัติ"]
[null,null,"โดยลงรายละเอียดการปฏิบัติของหน่วยย่อย"]
[null,1.5,"ฝ่ายส่งกำลังบำรุง (N4)",{"$nulls":8},{"v":4,"d":"4.0"},null,null,{"$f":"IF(S57=0,\"\",S57)","v":""},null,{"$f":"IF(M57=0,0,1*L57)","v":{"v":0,"d":"0.0"}},null,{"$f":"SUM(Q57:R57)","v":{"v":0,"d":"0.0"}},{"$f":"IF(P57=0,0,L57)","v":0}]
[null,"-","วางแผนเกี่ยวกับการส่งกำลังบำรุง โดยร่วมกับ"]
[null,null,"ส่วนยุทธการ (N3) และ ส่วนแผน (N5)"]
[null,"-","จัดทําบอร์ดสถานภาพของสิ่งอุปกรณ์ต่างๆ รวมถึง"]
[null,null,"สถานการณ์ซ่อมทำ"]
[null,"-","แก้ไขปัญหาในด้านการส่งกำลังบำรุงทุกประเภท"]
[null,"-","ดำเนินการติดต่อจัดหาเสบียง และยุทธปัจจัย "]
[null,null,"ให้เป็นไปตามความต้องการของการปฏิบัติ"]
[null,null,"ทางด้านยุทธการ"]
[null,1.6,"ฝ่ายแผน (N5)",{"$nulls":8},{"v":4,"d":"4.0"},null,null,{"$f":"IF(S66=0,\"\",S66)","v":""},null,{"$f":"IF(M66=0,0,1*L66)","v":{"v":0,"d":"0.0"}},null,{"$f":"SUM(Q66:R66)","v":{"v":0,"d":"0.0"}},{"$f":"IF(P66=0,0,L66)","v":0}]
[null,"-","ควบคุมการปฏิบัติของส่วนปฏิบัติการทางเรือ "]
[null,null,"ในการทำประมาณสถานการณ์ต่อเนื่อง และควบคุม"]
[null,null,"การปฏิบัติ โดยเน้นการดำเนินการใน Phase ต่อไป"]
[null,null,"หรือ 48 ชม.ต่อไปข้างหน้าหรือตามคำสั่งผู้บังคับบัญชา"]
[null,"-","แก้ไขปัญหาในด้านการจัดทำแผนทุกประเภท"]
[null,1.7,"ฝ่ายสื่อสาร (N6)",{"$nulls":8},{"v":4,"d":"4.0"},null,null,{"$f":"IF(S72=0,\"\",S72)","v":""},null,{"$f":"IF(M72=0,0,1*L72)","v":{"v":0,"d":"0.0"}},null,{"$f":"SUM(Q72:R72)","v":{"v":0,"d":"0.0"}},{"$f":"IF(P72=0,0,L72)","v":0}]
[null,"-","วางแผนเกี่ยวกับการสื่อสาร โดยร่วมกับส่วนยุทธการ"]
[null,null,"(N3) และส่วนแผน (N5) ในการประมาณสถานการณ์"]
[null,null,"ต่อเนื่องเพื่อจัดทำแผน/คำสั่งยุทธการ"]
[null,"-","ติดตามสถานะสิ่งอุปกรณ์ที่เกี่ยวกับการสื่อสาร "]
[null,null,"รวมถึงสถานการณ์ซ่อมทำยุทโธปกรณ์ที่เกี่ยวกับ"]
[null,null,"การสื่อสารของฝ่าย เราตลอดเวลา"]
[null,"-","จัดทำบอร์ดสถานภาพของเครือข่ายการสื่อสารต่างๆ"]
[null,null,"ทั้งภายนอก และภายใน"]
[null,"-","ดำเนินการในการรักษาความปลอดภัยทางการสื่อสาร"]
[null,"-","จัดหาอุปกรณ์เครื่องมือสื่อสาร และออกแบบเครือข่าย"]
[null,null,"การสื่อสารให้เป็นไปตามความต้องการของการปฏิบัติ"]
[null,null,"ทางด้านยุทธการ"]
[2,"การจัดหน้าที่และผลผลิตตำแหน่งต่างๆ ของเสนาธิการรบ"]
[null,2.1,"เสธ.มวก.",{"$nulls":8},{"v":4,"d":"4.0"},null,null,{"$f":"IF(S86=0,\"\",S86)","v":""},null,{"$f":"IF(M86=0,0,1*L86)","v":{"v":0,"d":"0.0"}},null,{"$f":"SUM(Q86:R86)","v":{"v":0,"d":"0.0"}},{"$f":"IF(P86=0,0,L86)","v":0}]
[null,"-","ควบคุมการปฏิบัติงานในส่วนของฝ่ายเสนาธิการ"]
[null,null,"ทั้งหมด เพื่อให้การปฏิบัติเป็นไปตามแผน"]
[null,"-","ควบคุมการติดตามสถานการณ์"]
[null,"-","เสนอข้อแนะนำในการตัดสินใจในเรื่องต่างๆ ให้กับผู้บังคับบัญชา"]
[null,"-","จัดให้มีการ AAR ในแต่ละวัน"]
[null,2.2,"หน.ฝ่ายกําลังกําลังพล",{"$nulls":8},{"v":4,"d":"4.0"},null,null,{"$f":"IF(S92=0,\"\",S92)","v":""},null,{"$f":"IF(M92=0,0,1*L92)","v":{"v":0,"d":"0.0"}},null,{"$f":"SUM(Q92:R92)","v":{"v":0,"d":"0.0"}},{"$f":"IF(P92=0,0,L92)","v":0}]
[null,"-","ติดตามสถานะกำลังพลตลอดเวลาและจัดทำสถานภาพกำลังพล"]
[null,"-","ดำเนินการปฏิบัติเกี่ยวกับการกำลังพล"]
[null,null,"เป็นไปตามแผน/ ระเบียบที่วางไว้"]
[null,"-","ดำเนินการจัดหากำลังพล ( ขอ/รับสมัคร/เกณฑ์) "]
[null,null,"รวมถึงจัดให้มีการฝึก/ศึกษา เพื่อที่จะสามารถทดแทน"]
[null,null,"กำลังพลที่ ขาดแคลน"]
[null,2.3,"หน.ฝ่ายการข่าว",{"$nulls":8},{"v":5,"d":"5.0"},null,null,{"$f":"IF(S99=0,\"\",S99)","v":""},null,{"$f":"IF(M99=0,0,1*L99)","v":{"v":0,"d":"0.0"}},null,{"$f":"SUM(Q99:R99)","v":{"v":0,"d":"0.0"}},{"$f":"IF(P99=0,0,L99)","v":0}]
[null,"-","วางแผนเกี่ยวกับการข่าว โดยร่วมกับส่วนยุทธการ "]
[null,null,"(N3) และส่วนแผน (N5) ในการประมาณสถานการณ์"]
[null,null,"ต่อเนื่องเพื่อจัดทำแผน/คำสั่งยุทธการ"]
[null,"-","ติดตามความเคลื่อนไหวของข้าศึกตลอดเวลา"]
[null,"-","เสนอแนะบัญชีเป้าหมาย"]
[null,"-","จัดทำบอร์ดข้อมูลข่าวสารของฝ่ายข้าศึก"]
[null,"-","จัดให้มีการต่อต้านข่าวกรอง"]
[null,"-","แก้ไขปัญหาในด้านการข่าวทุกประเภทโดยจัดให้"]
[null,null,"มีการประชุมร่วมกันทุก\nฝ่าย"]
[null,2.4,"หน.ฝ่ายยุทธการ/ส่วนปฏิบัติการ",{"$nulls":8},{"v":5,"d":"5.0"},null,null,{"$f":"IF(S109=0,\"\",S109)","v":""},null,{"$f":"IF(M109=0,0,1*L109)","v":{"v":0,"d":"0.0"}},null,{"$f":"SUM(Q109:R109)","v":{"v":0,"d":"0.0"}},{"$f":"IF(P109=0,0,L109)","v":0}]
[null,"-","ควบคุมการปฏิบัติในส่วนปฏิบัติการทางเรือ"]
[null,"-","ติดตามสถานการณ์ในพื้นที่ปฏิบัติการอย่างต่อเนื่อง"]
[null,"-","เสนอแนะกฎการปะทะ (ROE)"]
[null,"-","ประเมินผลการปฏิบัติตามแผน"]
[null,"-","แก้ไขปัญหาในการปฏิบัติตามแผน"]
[null,"-","แสดงภาพสถานการณ์ทั้งในอดีต (จากการพล๊อต"]
[null,"-","ติดตาม) และปัจจุบัน (จากระบบ C3I)"]
[null,"-","พัฒนาแผนที่จัดทำโดยฝ่ายแผน (N5) มาสู่การปฏิบัติ"]
[null,"-","โดยลงรายละเอียดการปฏิบัติของหน่วยย่อย"]
[null,2.5,"นายทหารยุทธการทางเรือ",{"$nulls":8},{"v":5,"d":"5.0"},null,null,{"$f":"IF(S119=0,\"\",S119)","v":""},null,{"$f":"IF(M119=0,0,1*L119)","v":{"v":0,"d":"0.0"}},null,{"$f":"SUM(Q119:R119)","v":{"v":0,"d":"0.0"}},{"$f":"IF(P119=0,0,L119)","v":0}]
[null,"-","ติดตามสถานการณ์การปฏิบัติการรบผิวน้ำ / "]
[null,null,"ปราบเรือดำน้ำ/ป้องกันภัยทางอากาศ ของหน่วยรอง"]
[null,"-","ให้คำแนะนำ/ แก้ไขปัญหา/ ช่วยเหลือในการ "]
[null,null,"ประสานงาน เพื่อให้การปฏิบัติในส่วนของปฏิบัติการ"]
[null,null,"รบผิว น้ำ / ปราบเรือดำน้ำ/ ป้องกันภัยทางอากาศ "]
[null,null,"ของหน่วยกำลัง เป็นไปตามแผน"]
[null,"-","รวบรวมคำแนะนำของ น.ยุทธการด้านต่างๆ "]
[null,null,"เพื่อจัดทำคำสั่งเป็นส่วนๆ"]
[null,2.6,"นายทหารปฏิบัติการรบผิวน้ำ",{"$nulls":8},{"v":5,"d":"5.0"},null,null,{"$f":"IF(S128=0,\"\",S128)","v":""},null,{"$f":"IF(M128=0,0,1*L128)","v":{"v":0,"d":"0.0"}},null,{"$f":"SUM(Q128:R128)","v":{"v":0,"d":"0.0"}},{"$f":"IF(P128=0,0,L128)","v":0}]
[null,"-","ติดตามสถานการณ์การปฏิบัติการรบผิวน้ำของหน่วยรอง"]
[null,"-","ให้คำแนะนำ/ แก้ไขปัญหา/ ช่วยเหลือในการ "]
[null,null,"ประสานงาน เพื่อให้การปฏิบัติในส่วนของปฏิบัติการ"]
[null,null,"รบผิว น้ำ ของหน่วยกำลัง เป็นไปตามแผน"]
[null,"-","รวบรวมคำแนะนำของ น.ยุทธการด้านต่างๆ ๆ"]
[null,null,"เพื่อจัดทำคำสั่งเป็นส่วน"]
[null,2.7,"นายทหารปฏิบัติปราบเรือดำน้ำ",{"$nulls":8},{"v":5,"d":"5.0"},null,null,{"$f":"IF(S135=0,\"\",S135)","v":""},null,{"$f":"IF(M135=0,0,1*L135)","v":{"v":0,"d":"0.0"}},null,{"$f":"SUM(Q135:R135)","v":{"v":0,"d":"0.0"}},{"$f":"IF(P135=0,0,L135)","v":0}]
[null,"-","ติดตามสถานการณ์การปฏิบัติการปราบเรือดำน้ำของหน่วยรอง"]
[null,"-","ให้คำแนะนำ/ แก้ไขปัญหา/ ช่วยเหลือในการ "]
[null,null,"ประสานงาน เพื่อให้การปฏิบัติในส่วนของปฏิบัติการ"]
[null,null,"ปราบเรือดำน้ำของหน่วยกำลัง เป็นไปตามแผน"]
[null,"-","รวบรวมคำแนะนำของ น.ยุทธการด้านต่างๆ "]
[null,null,"เพื่อจัดทำคำสั่งเป็นส่วนๆ"]
[null,2.8,"นายทหารป้องกันภัยทางอากาศ",{"$nulls":8},{"v":5,"d":"5.0"},null,null,{"$f":"IF(S142=0,\"\",S142)","v":""},null,{"$f":"IF(M142=0,0,1*L142)","v":{"v":0,"d":"0.0"}},null,{"$f":"SUM(Q142:R142)","v":{"v":0,"d":"0.0"}},{"$f":"IF(P142=0,0,L142)","v":0}]
[null,"-","ติดตามสถานการณ์การปฏิบติการป้องกันภัย"]
[null,null,"ทางอากาศของหน่วยรอง"]
[null,"-","ให้คำแนะนำ/ แก้ไขปัญหา/ ช่วยเหลือในการ "]
[null,null,"ประสานงาน เพื่อให้การปฏิบัติในส่วนของปฏิบัติการ"]
[null,null,"ป้องกันภัยทางอากาศของหน่วยกำลังเป็นไปตามแผน"]
[null,"-","รวบรวมคำแนะนำของ น.ยุทธการด้านต่างๆ"]
[null,null,"เพื่อจัดทำคำสั่งเป็นส่วนๆ"]
[null,2.9,"นายทหารยุทธการทางอากาศ",{"$nulls":8},{"v":5,"d":"5.0"},null,null,{"$f":"IF(S150=0,\"\",S150)","v":""},null,{"$f":"IF(M150=0,0,1*L150)","v":{"v":0,"d":"0.0"}},null,{"$f":"SUM(Q150:R150)","v":{"v":0,"d":"0.0"}},{"$f":"IF(P150=0,0,L150)","v":0}]
[null,"-","ติดตามสถานการณ์การปฏิบัติการของการปฏิบัติการ"]
[null,null,"ทางอากาศของหน่วยรอง รวมถึงหน่วยข้างเคียง "]
[null,null,"(เช่น ทอ.) ให้คำแนะนำ/ แก้ไขปัญหา/ ช่วยเหลือ"]
[null,null,"ในการประสานงาน เพื่อให้การปฏิบัติทางอากาศ"]
[null,null,"ของหน่วยกำลังเป็นไปตามแผน"]
[null,{"v":2.1,"d":"2.10"},"นายทหารส่งกำลังบำรุง",{"$nulls":8},{"v":5,"d":"5.0"},null,null,{"$f":"IF(S156=0,\"\",S156)","v":""},null,{"$f":"IF(M156=0,0,1*L156)","v":{"v":0,"d":"0.0"}},null,{"$f":"SUM(Q156:R156)","v":{"v":0,"d":"0.0"}},{"$f":"IF(P156=0,0,L156)","v":0}]
[null,"-","วางแผนเกี่ยวกับการส่งกำลังบำรุง โดยร่วมกับ"]
[null,null,"ส่วนยุทธการ (N3) และ ส่วนแผน (N5)"]
[null,"-","จัดทำบอร์ดสถานภาพของสิ่งของอุปกรณ์ต่างๆ"]
[null,null,"รวมถึงสถานการณ์ซ่อมทำยุทโธปกรณ์"]
[null,"-","แก้ไขปัญหาในด้านการส่งกำลังบำรุงทุกประเภท"]
[null,"-","ดำเนินการติดต่อจัดหาเสบียง และยุทธปัจจัย "]
[null,null,"ให้เป็นไปตามความต้องการของการปฏิบัติทางด้านยุทธการ"]
[null,2.11,"นายทหารวางแผนอนาคต",{"$nulls":8},{"v":4,"d":"4.0"},null,null,{"$f":"IF(S164=0,\"\",S164)","v":""},null,{"$f":"IF(M164=0,0,1*L164)","v":{"v":0,"d":"0.0"}},null,{"$f":"SUM(Q164:R164)","v":{"v":0,"d":"0.0"}},{"$f":"IF(P164=0,0,L164)","v":0}]
[null,"-","เป็นผู้นำและควบคุมการปฏิบัติในการประมาณ "]
[null,null,"สถานการณ์ของผู้บังคับบัญชา และการจัดทำแผน/คำสั่งยุทธการ"]
[null,"-","ควบคุมในส่วนการปฏิบัติของส่วนวางแผนทางเรือ "]
[null,null,"ในการทำประมาณสถานการณ์ต่อเนื่อง และ "]
[null,null,"ควบคุมการปฏิบัติ โดย เน้น Phase ต่อไป หรือ "]
[null,null,"48 ชม.ต่อไปข้างหน้า หรือ ตามคำสั่งผู้บังคับบัญชา"]
[null,"-","แก้ไขปัญหาในด้านการจัดทำแผนทุกประเภท"]
[null,2.12,"นายทหารสื่อสาร",{"$nulls":8},{"v":5,"d":"5.0"},null,null,{"$f":"IF(S172=0,\"\",S172)","v":""},null,{"$f":"IF(M172=0,0,1*L172)","v":{"v":0,"d":"0.0"}},null,{"$f":"SUM(Q172:R172)","v":{"v":0,"d":"0.0"}},{"$f":"IF(P172=0,0,L172)","v":0}]
[null,"-","วางแผนเกี่ยวกับการสื่อสาร โดยร่วมกับส่วนยุทธการ"]
[null,null,"(N3) และส่วนแผน (N5) ในการประมาณสถานการณ์"]
[null,null,"ต่อเนื่องเพื่อจัดทำแผน/คำสั่งยุทธการ"]
[null,"-","ติดตามสถานะสิ่งอุปกรณ์ที่เกี่ยวกับการสื่อสาร "]
[null,null,"รวมถึงสถานการณ์ซ่อมทำยุทโธปกรณ์ที่เกี่ยวกับ"]
[null,null,"การสื่อสารของฝ่าย เราตลอดเวลา"]
[null,"-","จัดทำบอร์ดสถานภาพของเครือข่ายการสื่อสารต่างๆ"]
[null,null,"ทั้งภายนอก และภายใน"]
[null,"-","ดำเนินการในการรักษาความปลอดภัยทางการสื่อสาร"]
[null,"-","จัดหาอุปกรณ์เครื่องมือสื่อสาร และออกแบบเครือข่าย"]
[null,null,"การสื่อสารให้เป็นไปตามความต้องการของการปฏิบัติ"]
[null,null,"ทางด้านยุทธการ"]
[3,"การปฏิบัติงานตามวงรอบของฝ่ายเสนาธิการ (BattleRhythm)"]
[null,3.1,"การบรรยายสรุปสถานการณ์รวม ครั้งที่ 1",{"$nulls":8},{"v":4,"d":"4.0"},null,null,{"$f":"IF(S186=0,\"\",S186)","v":""},null,{"$f":"IF(M186=0,0,1*L186)","v":{"v":0,"d":"0.0"}},null,{"$f":"SUM(Q186:R186)","v":{"v":0,"d":"0.0"}},{"$f":"IF(P186=0,0,L186)","v":0}]
[null,"-","ภาพสถานการณ์รวม"]
[null,"-","เจตนารมย์หน่วยเหนือ"]
[null,"-","คำแนะนำในการปรับแต่ง แผนยุทธการ 48 ชม. "]
[null,null,"ข้างหน้าเป็นต้นไป ตามที่ฝ่ายแผนนำเสนอ"]
[null,"-","อนุมัติคำสั่งปรับแก้แผน/คำสั่งยุทธการเดิม (FRAGOs)"]
[null,null,"เพื่อปรับแผนการปฏิบัติ(หากมี)"]
[null,"-","อนุมัติเรื่องที่ฝ่ายเสนาธิการฝ่ายต่างๆ เสนอข้อพิจารณา"]
[null,"-","อนุมติ Nominated Target List (NTL) ในส่วน"]
[null,null,"ของ ทร. จากการประชุม แผนระยะสั้น ( N35) "]
[null,null,"เพื่อเสนอหน่วยเหนือ"]
[null,"-","ข่าวสารสำคัญที่ผู้บังคับบัญชาต้องการ (CCIR)"]
[null,"-","ความต้องการข่าวกรองตามลำดับความเร่งด่วน (PIR)"]
[null,3.2,"การประชุมแผนอนาคต ครั้งที่ 1",{"$nulls":8},{"v":4,"d":"4.0"},null,null,{"$f":"IF(S199=0,\"\",S199)","v":""},null,{"$f":"IF(M199=0,0,1*L199)","v":{"v":0,"d":"0.0"}},null,{"$f":"SUM(Q199:R199)","v":{"v":0,"d":"0.0"}},{"$f":"IF(P199=0,0,L199)","v":0}]
[null,"-","แผน แนวความคิด และแนวทางการปฏิบัติสำหรับ "]
[null,null,"หน่วยกำลังในอนาคต ห้วงระยะเวลา 24 – 72 ชม.ข้างหน้า"]
[null,"-","เสนอ Warning Order ให้ผบ. อนุมัติเพื่อเตรียมการ"]
[null,null,"ทำแผนของหน่วยรอง เพื่อรองรับแผนที่จะทำขึ้น"]
[null,"-","ส่ง Warning Order ให้กับหน่วยรอง"]
[null,"-","แจ้ง Warning Order ให้หน่วยเหนือทราบ ในการ "]
[null,null,"ประชุม ผบ.ชา กับหน่วยเหนือ"]
[null,3.3,"การประชุมแผนระยะสั้น",{"$nulls":8},{"v":5,"d":"5.0"},null,null,{"$f":"IF(S207=0,\"\",S207)","v":""},null,{"$f":"IF(M207=0,0,1*L207)","v":{"v":0,"d":"0.0"}},null,{"$f":"SUM(Q207:R207)","v":{"v":0,"d":"0.0"}},{"$f":"IF(P207=0,0,L207)","v":0}]
[null,"-","ร่างคำสั่งเป็นส่วนๆ FRAGOs"]
[null,"-","แนวความคิดในการปฏิบัติใน 24 - 48 ชม.ข้างหน้า"]
[null,"-","แนวความคิดในการปฏิบัติในวันถัดไปในลักษณะ"]
[null,null,"ตารางประสานสอดคล้อง"]
[null,"-","ร่างคำสั่งเป็นส่วนๆ FRAGOs โดยเฉพาะ"]
[null,null,"หากมีการเปลี่ยนแผน ต้องกำหนดกิจและ"]
[null,null,"วัตถุประสงค์ใหม่ให้กับหน่วยรองในคำสั่งนี้"]
[null,"-","เตรียมนำเสนอ FRAGOs ในการประชุมบรรยายสรุป"]
[null,null,"สถานการณ์รวม ในช่วงบ่าย (1300)"]
[null,"-","ร่างตารางเป้าหมายทีเสนอในวันถัดไป่ Nominate "]
[null,null,"Target List: NTL เพื่อเสนออนุมัติในช่วงบ่าย"]
[null,3.4,"การประชุมระหว่าง ผู้บังคับบัญชากับหน่วยรอง",{"$nulls":8},{"v":4,"d":"4.0"},null,null,{"$f":"IF(S219=0,\"\",S219)","v":""},null,{"$f":"IF(M219=0,0,1*L219)","v":{"v":0,"d":"0.0"}},null,{"$f":"SUM(Q219:R219)","v":{"v":0,"d":"0.0"}},{"$f":"IF(P219=0,0,L219)","v":0}]
[null,"-","หน่วยรองรับทราบ แนวความคิดในการปฏิบัติและ"]
[null,null,"มีความเข้าใจตรงกันกับ ผบ.ชา ในเรื่องต่างๆ ดังนี้"]
[null,"-","บัญชีเป้าหมาย"]
[null,"-","เพิ่มเติม CCIR ในส่วนของ ผบ.หน่วยรอง"]
[null,"-","ปรับปรุง PIR"]
[null,"-","N5 และ N3/5 พิจารณาเก็บรวมรวมข้อมูล "]
[null,null,"ข้อขัดข้อง ของหน่วยรองไปพิจารณาปรับแผน"]
[null,"-","N3 ให้ข้อคิดเห็น เพื่อให้การปฏิบัติให้เป็นไปตามแผน"]
[null,3.5,"บรรยายสรุปสถานการณ์รวม ครั้งที่ 2",{"$nulls":8},{"v":4,"d":"4.0"},null,null,{"$f":"IF(S228=0,\"\",S228)","v":""},null,{"$f":"IF(M228=0,0,1*L228)","v":{"v":0,"d":"0.0"}},null,{"$f":"SUM(Q228:R228)","v":{"v":0,"d":"0.0"}},{"$f":"IF(P228=0,0,L228)","v":0}]
[null,"-","รายละเอียดเหมือน ครั้งที่ 1"]
[null,3.6,"การประชุมแผนอนาคต ครั้งที่ 2",{"$nulls":8},{"v":4,"d":"4.0"},null,null,{"$f":"IF(S230=0,\"\",S230)","v":""},null,{"$f":"IF(M230=0,0,1*L230)","v":{"v":0,"d":"0.0"}},null,{"$f":"SUM(Q230:R230)","v":{"v":0,"d":"0.0"}},{"$f":"IF(P230=0,0,L230)","v":0}]
[null,"-","รายละเอียดเหมือน ครั้งที่ 1"]
[null,3.7,"การประชุมแผนอนาคต ครั้งที่ 3",{"$nulls":8},{"v":4,"d":"4.0"},null,null,{"$f":"IF(S232=0,\"\",S232)","v":""},null,{"$f":"IF(M232=0,0,1*L232)","v":{"v":0,"d":"0.0"}},null,{"$f":"SUM(Q232:R232)","v":{"v":0,"d":"0.0"}},{"$f":"IF(P232=0,0,L232)","v":0}]
[null,"-","เป็นการประชุมเพื่อ พิจารณา และอนุมัติร่างบัญชี "]
[null,null,"เป้าหมายของ กกล. ของวันถัดไปที่ส่วนวางแผน"]
[null,null,"ระยะสั้น จัดทำเพื่อเสนอในการประชุมบัญชีเป้าหมาย"]
[null,null,"ของหน่วยเหนือ"]
[{"$nulls":10},"รวมคะแนนที่ประเมินได้",{"$f":"SUM(L12:L236)","v":{"v":118,"d":"118.0"}},null,null,{"$f":"IF(S237=0,\"\",S237)","v":""},"คะแนน",{"$f":"SUM(Q12:Q236)","v":{"v":0,"d":"0.0"}},{"$f":"SUM(R12:R236)","v":{"v":0,"d":"0.0"}},{"$f":"SUM(S12:S236)","v":{"v":0,"d":"0.0"}},{"$f":"SUM(T12:T236)","v":{"v":0,"d":"0.0"}},{"$f":"IF(S237=0,0,S237+T237)","v":0}]
[{"$nulls":10},"รวมคะแนนเต็มเฉพาะรายการที่ประเมินได้",{"$f":"IF(Q238=0,\"\",Q238)","v":""},null,null,{"$f":"O237","v":""},"คะแนน",{"$f":"S237+T237","v":{"v":0,"d":"0.0"}}]
[{"$nulls":10},"คิดเป็นคะแนนที่ได้ของคะแนนเต็ม 100 คะแนน",{"$f":"L238","v":""},null,null,{"$f":"IF(Q239=0,\"\",Q239)","v":""},"คะแนน",{"$f":"IF(U237=0,0,U237*100/L237)","v":{"v":0,"d":"0.0"}},{"$nulls":4},{"$f":"IF(Q239=0,0,1)","v":0}]
[null,"คำแนะนำในการประเมิน"]
[null,1,"เกณฑ์การให้คะแนน"]
[null,null,"-","สามารถปฏิบัติการตามขั้นตอนได้อย่างถูกต้อง",{"$nulls":7},"ให้","ปฏิบัติ"," = 1"]
[null,null,"-","ไม่มีการปฏิบัติหรือไม่ปฏิบัติตามขั้นตอนหรือไม่มีข้อมูล",{"$nulls":7},"ให้","ไม่ปฏิบัติ"," = 0"]
[null,null,"การคิดคะแนนเป็นร้อยละ = (คะแนนรวมที่ได้/คะแนนเต็ม) x 100"]
[null,2,"คิดคะแนนเป็นร้อยละ โดยคิดจากร้อยละคะแนนเต็มตามหัวข้อที่ประเมินได้ และมีบรรจุตามอัตราเรือ"]
[null,null,"(หัวข้อใดไม่ประเมินให้พิมพ์คำว่า \"ไม่ประเมิน\" ลงในช่องหมายเหตุ)"]
[null,3,"เกณฑ์การประเมิน"]
[{"$nulls":3},"ต้องปรับปรุง",null,null,"0 - 59",{"$nulls":5},"ดี","80 - 89"]
[{"$nulls":3},"พอใช้",null,null,"60 - 69",{"$nulls":5},"ดีมาก","90 - 100"]
[{"$nulls":3},"ปานกลาง",null,null,"70 - 79"]
[null,"สรุปผลการประเมิน   ",{"$nulls":3},"หน่วย/เรือ",null,{"$f":"IF(E4=0,\"\",E4)","v":""}]
[{"$nulls":5},"ได้คะแนนรวมร้อยละ",{"$nulls":3},{"$f":"O239","v":""}]
[{"$nulls":5},"อยู่ในเกณฑ์",{"$nulls":3},{"$f":"IF(J252=\"\",\"\",IF(J252>=90,M249,IF(J252>=80,M248,IF(J252>=70,D250,IF(J252>=60,D249,IF(J252>0,D248,\"\"))))))","v":""}]
[null,"ข้อคิดเห็น/ข้อเสนอแนะ"]
[]
[]
[]
[]
[{"$nulls":13},"ผู้ประเมิน"]
[{"$nulls":8},"/      /"]